bitfinex-derivatives/quotes_SOLF0:USTF0_20251221
["timestamp","ask_amount","ask_price","bid_price","bid_amount"]
[1766340433826,3.27,124.67,124.62,50.0]
[1766340434418,0.05636691,124.66,124.63,0.05969704]
[1766340436021,52.38044542,124.7,124.63,3.43969704]
[1766340436922,0.0584884,124.68,124.63,3.43969704]
[1766340443327,0.0584884,124.68,124.64,3.38]
[1766340444231,1.73044542,124.66,124.63,0.05969704]
[1766340444835,1.73044542,124.67,124.63,0.05969704]
[1766340445931,0.0584884,124.68,124.63,3.43969704]
[1766340447623,5.05893382,124.68,124.63,0.05969704]
[1766340447827,12.28023382,124.68,124.63,0.05969704]
[1766340448028,10.5497884,124.68,124.63,0.05969704]
[1766340448229,12.28023382,124.68,124.63,0.05969704]
[1766340450743,0.0584884,124.68,124.63,3.43969704]
[1766340451639,1.73044542,124.7,124.64,3.19]
[1766340451835,4.92044542,124.7,124.64,3.19]
[1766340452540,0.05506508,124.68,124.66,0.05600819]
[1766340452740,4.9755105,124.68,124.62,53.19]
[1766340453541,3.24506508,124.68,124.62,53.19]
[1766340453743,3.24506508,124.68,124.64,0.05071168]
[1766340455844,0.05506508,124.68,124.64,0.05071168]
[1766340456145,5.07044542,124.67,124.64,0.00071168]
[1766340459446,3.34,124.66,124.62,50.0]
[1766340460341,2.75875557,124.65,124.57,7.2271]
[1766340460545,2.70586464,124.65,124.55,3.43]
[1766340460754,2.70586464,124.63,124.55,3.43]
[1766340460947,8.41952567,124.63,124.55,3.43]
[1766340461452,0.05603346,124.6,124.58,0.05607948]
[1766340461648,5.71366103,124.63,124.58,0.05607948]
[1766340461844,53.11366103,124.66,124.58,0.05607948]
[1766340462049,53.11366103,124.66,124.57,3.43]
[1766340462247,5.71366103,124.66,124.58,3.43]
[1766340462549,15.64122567,124.67,124.58,3.43]
[1766340462755,0.05963207,124.64,124.61,0.05833466]
[1766340470956,5.71366103,124.66,124.61,3.48833466]
[1766340471257,7.2218,124.67,124.61,3.48833466]
[1766340472060,0.06038253,124.65,124.61,3.48833466]
[1766340474160,0.00038253,124.65,124.61,3.48833466]
[1766340474362,5.71366103,124.69,124.61,3.48833466]
[1766340474659,7.2202,124.7,124.61,3.43]
[1766340475248,0.05743283,124.67,124.64,3.48492518]
[1766340475462,7.77142103,124.71,124.64,3.48492518]
[1766340476457,0.0538673,124.69,124.64,3.48492518]
[1766340478966,0.0038673,124.69,124.64,3.48492518]
[1766340480563,2.05776,124.71,124.65,3.43]
[1766340481357,8.44121449,124.75,124.66,3.43]
[1766340481755,8.44121449,124.75,124.69,3.48293402]
[1766340481756,0.0012711,124.72,124.69,3.48293402]
[1766340481968,8.44121449,124.77,124.69,3.48293402]
[1766340482167,8.44121449,124.79,124.7,3.43]
[1766340482364,2.70490049,124.79,124.71,3.43]
[1766340482667,57.68262662,124.81,124.71,3.43]
[1766340482965,0.05827549,124.77,124.75,0.05949442]
[1766340483167,57.68262662,124.81,124.75,0.05949442]
[1766340483369,57.68262662,124.81,124.75,3.48949442]
[1766340483559,1.84141213,124.81,124.75,3.48949442]
[1766340484054,0.05167952,124.79,124.75,3.48949442]
[1766340485661,5.72572283,124.83,124.75,3.48949442]
[1766340485864,2.70490049,124.85,124.75,3.43]
[1766340486173,2.70490049,124.79,124.7,3.42]
[1766340486466,2.70490049,124.77,124.7,3.42]
[1766340486662,2.70490049,124.77,124.72,0.05081464]
[1766340486866,0.05826283,124.75,124.72,0.05081464]
[1766340496980,7.2149,124.79,124.72,3.47081464]
[1766340497873,0.05979969,124.77,124.72,3.47081464]
[1766340500884,0.05979969,124.77,124.72,0.05081464]
[1766340502580,7.27579969,124.77,124.72,0.05081464]
[1766340515289,12.99965471,124.77,124.72,0.05081464]
[1766340519897,1.72865533,124.76,124.72,0.05081464]
[1766340524309,7.45251035,124.76,124.72,0.05081464]
[1766340525404,1.72865533,124.76,124.72,0.05081464]
[1766340530121,7.45251035,124.76,124.72,0.05081464]
[1766340531326,5.72385502,124.75,124.72,0.05081464]
[1766340534330,7.45251035,124.76,124.72,0.05081464]
[1766340534532,5.72385502,124.75,124.72,0.05081464]
[1766340534733,7.45251035,124.76,124.72,0.05081464]
[1766340535128,5.72385502,124.75,124.72,0.05081464]
[1766340537327,8.94515533,124.76,124.72,0.05081464]
[1766340537628,5.76433507,124.75,124.72,0.05081464]
[1766340541040,5.76433507,124.76,124.72,0.05081464]
[1766340541334,5.76433507,124.75,124.72,0.05081464]
[1766340541531,1.72865533,124.75,124.72,0.05081464]
[1766340541736,1.72865533,124.73,124.64,3.54]
[1766340541935,1.72865533,124.71,124.64,3.54]
[1766340542138,7.4929904,124.71,124.64,3.54]
[1766340542332,1.72865533,124.71,124.64,3.54]
[1766340542531,7.4929904,124.71,124.64,3.54]
[1766340542726,7.791e-05,124.72,124.67,5.26865533]
[1766340542932,9.07091696,124.76,124.68,3.54]
[1766340543437,7.2173,124.75,124.68,3.54]
[1766340543839,0.05610281,124.73,124.7,0.05516639]
[1766340544338,1.72865533,124.77,124.71,3.54]
[1766340545434,0.06162572,124.75,124.73,0.05470058]
[1766340549841,0.06162572,124.75,124.71,3.54]
[1766340551050,0.06162572,124.75,124.72,0.05477428]
[1766340559358,0.06162572,124.75,124.71,3.54]
[1766340559359,7.46066678,124.74,124.67,70.2213]
[1766340559553,5.73146505,124.73,124.65,110.36]
[1766340560257,0.05245675,124.7,124.68,0.05222188]
[1766340562654,0.00245675,124.7,124.68,3.57222188]
[1766340563061,14.67856678,124.74,124.68,3.57222188]
[1766340563962,0.06080535,124.72,124.68,3.57222188]
[1766340566157,7.46066678,124.75,124.68,3.57222188]
[1766340566360,5.73146505,124.75,124.68,3.57222188]
[1766340566559,7.46066678,124.77,124.68,3.57222188]
[1766340566856,7.46066678,124.77,124.68,3.52]
[1766340567265,0.05417405,124.74,124.71,0.05418731]
[1766340571363,0.05417405,124.74,124.71,3.39418731]
[1766340571566,0.00417405,124.74,124.71,3.39418731]
[1766340571769,1.72920173,124.77,124.71,3.39418731]
[1766340572861,0.06043523,124.75,124.71,3.39418731]
[1766340576764,0.06043523,124.75,124.71,10.61328731]
[1766340576958,0.06043523,124.75,124.72,3.6]
[1766340577575,0.00043523,124.75,124.72,3.6]
[1766340577961,0.00043523,124.75,124.71,0.05418731]
[1766340582278,2.70157326,124.75,124.68,3.6]
[1766340582471,2.70113803,124.73,124.68,3.6]
[1766340583475,0.05454573,124.72,124.69,0.0553525]
[1766340586775,2.70113803,124.71,124.64,50.96]
[1766340587281,2.70113803,124.71,124.65,3.6]
[1766340587583,9.92053803,124.71,124.65,3.6]
[1766340587875,0.05583808,124.69,124.67,0.05063102]
[1766340591278,2.75697611,124.69,124.62,3.6]
[1766340591480,2.70113803,124.69,124.62,3.6]
[1766340591779,2.70113803,124.67,124.62,3.6]
[1766340592280,0.05665944,124.66,124.63,0.05152928]
[1766340601101,0.05665944,124.66,124.6,47.38]
[1766340601292,2.70113803,124.65,124.59,3.6]
[1766340601600,2.7062723,124.66,124.59,3.6]
[1766340602094,9.9285723,124.66,124.59,3.6]
[1766340602397,0.05465705,124.64,124.61,0.05104711]
[1766340604702,0.00465705,124.64,124.61,3.65104711]
[1766340607304,7.2201,124.7,124.61,3.65104711]
[1766340607500,7.2201,124.7,124.61,3.6]
[1766340608301,0.05598389,124.67,124.64,0.05449898]
[1766340609005,0.05598389,124.67,124.64,3.57449898]
[1766340612208,0.05598389,124.67,124.64,0.05449898]
[1766340623616,0.05598389,124.67,124.64,3.57449898]
[1766340625619,0.05598389,124.67,124.64,0.05449898]
[1766340632828,47.45598389,124.67,124.64,0.05449898]
[1766340635232,53.13585278,124.67,124.64,0.05449898]
[1766340635433,47.45598389,124.67,124.64,0.05449898]
[1766340636233,53.13585278,124.67,124.64,0.05449898]
[1766340637231,60.35755278,124.67,124.64,0.05449898]
[1766340637428,5.67986889,124.66,124.64,0.00449898]
[1766340637634,112.3913,124.61,124.52,3.64]
[1766340637830,2.7062723,124.58,124.52,3.64]
[1766340638635,0.00269421,124.56,124.54,3.69727892]
[1766340638830,5.67986889,124.6,124.54,3.64]
[1766340639133,47.4,124.61,124.54,3.64]
[1766340639937,0.05991081,124.59,124.56,0.05882465]
[1766340643637,0.05991081,124.59,124.53,3.64]
[1766340643938,1.73408573,124.57,124.51,3.64]
[1766340644530,0.06057237,124.55,124.53,0.06046014]
[1766340645434,0.00057237,124.55,124.53,3.70046014]
[1766340646435,0.00057237,124.55,124.53,0.06046014]
[1766340647443,0.00057237,124.55,124.53,3.70046014]
[1766340651339,1.73408573,124.58,124.53,3.70046014]
[1766340651538,119.6081,124.62,124.53,3.70046014]
[1766340651739,1.73408573,124.6,124.53,3.64]
[1766340652248,0.05243606,124.58,124.55,0.05435113]
[1766340655044,1.78652179,124.58,124.55,0.05435113]
[1766340655347,1.78652179,124.58,124.53,3.64]
[1766340655548,1.78652179,124.58,124.51,3.64]
[1766340655549,1.73408573,124.56,124.51,3.64]
[1766340656346,1.73408573,124.54,124.52,0.05503061]
[1766340656543,1.73408573,124.54,124.52,0.05358561]
[1766340656745,0.05236014,124.55,124.52,0.05358561]
[1766340656944,1.73408573,124.54,124.48,3.64]
[1766340657140,112.4386,124.56,124.48,3.64]
[1766340657448,1.73408573,124.55,124.48,3.64]
[1766340657648,121.40758573,124.55,124.48,3.64]
[1766340657841,8.96298573,124.55,124.48,3.64]
[1766340658042,0.05791128,124.53,124.5,0.05952715]
[1766340658842,0.05791128,124.53,124.45,3.64]
[1766340659042,167.0756,124.57,124.48,3.64]
[1766340659349,56.38148573,124.57,124.5,3.64]
[1766340659541,1.73408573,124.56,124.5,3.64]
[1766340659853,0.0539472,124.54,124.52,0.06040002]
[1766340660055,0.0539472,124.54,124.52,0.00040002]
[1766340660244,0.0539472,124.54,124.48,3.64]
[1766340661354,0.0539472,124.54,124.5,0.05867849]
[1766340662154,0.0539472,124.54,124.5,3.69867849]
[1766340662337,0.0039472,124.54,124.5,5.43276422]
[1766340662653,0.0039472,124.54,124.51,3.64]
[1766340668040,54.667,124.58,124.52,3.67]
[1766340668041,47.44,124.58,124.52,3.67]
[1766340669051,0.05244558,124.56,124.54,0.05674297]
[1766340670748,1.73408573,124.55,124.5,3.67]
[1766340671745,0.05244558,124.56,124.51,0.05365589]
[1766340672046,1.78653131,124.56,124.51,0.05365589]
[1766340673065,1.73408573,124.54,124.48,3.67]
[1766340674058,0.06155572,124.52,124.5,0.05668409]
[1766340676157,0.00155572,124.52,124.5,3.72668409]
[1766340677060,1.73408573,124.56,124.5,3.72668409]
[1766340677961,1.73408573,124.57,124.5,3.72668409]
[1766340678156,0.05446252,124.55,124.5,3.67]
[1766340678353,0.05446252,124.55,124.52,0.06062937]
[1766340682560,1.78854825,124.55,124.52,0.06062937]
[1766340684170,1.78885802,124.55,124.52,0.06062937]
[1766340688472,0.05446252,124.55,124.52,0.06062937]
[1766340690666,0.05446252,124.55,124.52,3.57062937]
[1766340691865,5.68839938,124.58,124.52,3.57062937]
[1766340692067,1.7343955,124.6,124.52,3.57062937]
[1766340692269,1.7343955,124.6,124.52,3.51]
[1766340692971,0.00213821,124.57,124.55,3.56628156]
[1766340694175,5.68839938,124.62,124.57,3.51]
[1766340694365,1.7343955,124.62,124.54,3.51]
[1766340695276,0.05966264,124.59,124.57,0.05829039]
[1766340697176,1.7343955,124.62,124.57,3.67829039]
[1766340698077,0.05599743,124.61,124.57,3.67829039]
[1766340702575,1.79039293,124.61,124.57,3.67829039]
[1766340703376,1.79039293,124.61,124.55,3.62]
[1766340703377,1.7343955,124.59,124.55,3.62]
[1766340704570,0.05885224,124.58,124.56,0.05913392]
[1766340704770,0.05223673,124.58,124.56,0.05913392]
[1766340708986,60.02195134,124.64,124.56,3.67913392]
[1766340709186,60.02195134,124.64,124.56,3.62]
[1766340710087,0.05679785,124.61,124.59,0.0563381]
[1766340710380,50.09016061,124.64,124.59,3.6763381]
[1766340711486,0.05290045,124.63,124.59,3.6763381]
[1766340713289,9.92989073,124.67,124.59,3.6763381]
[1766340713483,9.92989073,124.67,124.59,3.62]
[1766340714285,0.05965292,124.64,124.62,0.05745877]
[1766340715399,7.2217,124.67,124.62,3.67745877]
[1766340716299,0.05191345,124.66,124.62,3.67745877]
[1766340717001,0.00191345,124.66,124.62,3.67745877]
[1766340717501,2.70819073,124.71,124.63,3.62]
[1766340718095,59.34298047,124.73,124.64,3.62]
[1766340718494,0.04180151,124.7,124.67,0.05722642]
[1766340720798,0.04180151,124.7,124.61,112.3839]
[1766340720799,115.02819073,124.69,124.6,3.62]
[1766340721003,2.70819073,124.65,124.57,3.62]
[1766340721699,9.93119073,124.65,124.57,3.62]
[1766340721908,0.05163946,124.62,124.6,0.05632563]
[1766340724197,0.05163946,124.62,124.57,3.62]
[1766340724995,0.05163946,124.62,124.54,7.2287]
[1766340725196,0.05068812,124.59,124.57,0.05707696]
[1766340725396,2.70819073,124.61,124.55,3.73]
[1766340725600,0.05176143,124.59,124.57,0.05702157]
[1766340725804,0.05176143,124.59,124.53,3.73]
[1766340726004,2.70819073,124.59,124.47,112.5086]
[1766340726306,2.70819073,124.59,124.49,3.73]
[1766340726500,2.70964812,124.58,124.49,3.73]
[1766340727103,0.05512391,124.55,124.52,0.05977279]
[1766340731709,2.70964812,124.61,124.53,3.73]
[1766340731908,122.32564812,124.61,124.53,3.73]
[1766340732214,2.70964812,124.59,124.53,3.73]
[1766340732717,0.05819837,124.57,124.55,0.05665378]
[1766340735306,9.73672373,124.68,124.55,3.78665378]
[1766340735512,9.73672373,124.68,124.55,3.73]
[1766340735513,7.2247,124.62,124.55,3.73]
[1766340735902,9.93434812,124.62,124.55,3.73]
[1766340736315,0.05113835,124.6,124.57,0.05053501]
[1766340746626,2.76078647,124.6,124.53,66.79]
[1766340747225,2.70964812,124.58,124.51,3.79]
[1766340747616,0.0593283,124.56,124.53,0.05262638]
[1766340762144,0.0593283,124.56,124.46,2.70964812]
[1766340762435,2.70964812,124.51,124.42,3.7]
[1766340762645,2.70964812,124.53,124.42,3.7]
[1766340762937,118.21244598,124.53,124.43,3.7]
[1766340763143,5.74734598,124.52,124.43,3.7]
[1766340763540,0.05323039,124.49,124.46,0.0509966]
[1766340763842,0.05323039,124.49,124.42,3.7]
[1766340764348,7.28523039,124.49,124.42,3.7]
[1766340764645,13.03257637,124.49,124.42,3.7]
[1766340764944,125.53147637,124.49,124.44,0.05617566]
[1766340765131,122.45144812,124.48,124.4,3.7]
[1766340765441,9.94274812,124.48,124.4,3.7]
[1766340766140,0.0566108,124.45,124.43,0.05997264]
[1766340766343,0.05969435,124.45,124.43,0.05997264]
[1766340772242,167.1634,124.5,124.43,0.05997264]
[1766340772243,47.44,124.5,124.43,3.75997264]
[1766340773145,0.05920934,124.48,124.43,3.75997264]
[1766340773648,1.73681539,124.52,124.43,3.75997264]
[1766340773844,1.73681539,124.52,124.43,3.7]
[1766340774454,0.05301425,124.49,124.46,0.05363004]
[1766340775755,0.05301425,124.49,124.46,3.75363004]
[1766340775756,0.00301425,124.49,124.46,3.75363004]
[1766340782154,56.42601539,124.54,124.46,3.75363004]
[1766340782155,47.46,124.54,124.48,3.7]
[1766340782460,49.19681539,124.54,124.48,3.7]
[1766340783160,0.05309484,124.52,124.5,0.05413101]
[1766340783457,0.00309484,124.52,124.5,0.05413101]
[1766340786951,0.00309484,124.52,124.5,4.13413101]
[1766340788860,0.00309484,124.52,124.5,0.05413101]
[1766340789064,1.73681539,124.57,124.5,4.13413101]
[1766340789963,0.05859999,124.55,124.5,4.13413101]
[1766340800669,56.42371539,124.58,124.5,4.13413101]
[1766340800861,49.19681539,124.58,124.51,4.08]
[1766340801068,47.46,124.58,124.51,4.08]
[1766340801663,47.46,124.58,124.53,4.13637406]
[1766340803671,8.96271539,124.6,124.53,4.13637406]
[1766340805271,1.73681539,124.58,124.53,4.13637406]
[1766340805475,1.73681539,124.58,124.54,0.05172876]
[1766340809875,1.73681539,124.59,124.54,0.05172876]
[1766340810080,1.73681539,124.6,124.54,0.05172876]
[1766340810272,1.73681539,124.6,124.56,0.05821823]
[1766340813082,1.73324616,124.6,124.56,0.05821823]
[1766340813381,1.73324616,124.58,124.53,4.08]
[1766340814384,0.05821823,124.57,124.54,0.05353712]
[1766340816880,0.05821823,124.57,124.54,3.93353712]
[1766340819486,1.73324616,124.59,124.54,3.93353712]
[1766340823591,1.73324616,124.59,124.54,0.05353712]
[1766340826193,8.95954616,124.59,124.54,0.05353712]
[1766340827997,7.2263,124.59,124.54,0.05353712]
[1766340831991,2.70879236,124.56,124.49,3.88]
[1766340832189,2.70879236,124.54,124.49,3.88]
[1766340832581,2.70879236,124.54,124.46,3.88]
[1766340832781,0.05353712,124.51,124.49,0.05890914]
[1766340835900,0.05353712,124.51,124.44,3.88]
[1766340836197,2.70879236,124.52,124.44,3.88]
[1766340836900,0.06107999,124.49,124.47,0.06087782]
[1766340837096,0.00107999,124.49,124.47,3.94087782]
[1766340839900,0.00107999,124.49,124.47,0.06087782]
[1766340840103,0.00107999,124.49,124.47,3.94087782]
[1766340848512,7.2287,124.55,124.47,3.94087782]
[1766340848715,7.2287,124.55,124.47,3.88]
[1766340849605,0.05136627,124.52,124.5,0.06117629]
[1766340855823,0.05136627,124.52,124.46,3.96]
[1766340856818,0.05136627,124.52,124.48,0.06166231]
[1766340859713,0.05136627,124.52,124.44,7.2346]
[1766340859714,2.71187457,124.51,124.44,3.96]
[1766340859909,162.63797457,124.53,124.44,3.96]
[1766340860715,0.06046793,124.5,124.47,0.05625853]
[1766340863715,0.06046793,124.5,124.47,4.01625853]
[1766340863922,0.00046793,124.5,124.47,4.01625853]
[1766340869415,50.17187457,124.53,124.47,4.01625853]
[1766340869416,47.46,124.53,124.47,4.01625853]
[1766340870221,0.05314888,124.51,124.47,4.01625853]
[1766340870522,2.71187457,124.5,124.41,3.96]
[1766340871514,0.05793539,124.47,124.44,4.01412734]
[1766340871720,7.2316,124.5,124.44,4.01412734]
[1766340872730,0.05953405,124.48,124.44,4.01412734]
[1766340879946,10.00420862,124.48,124.42,3.94]
[1766340880138,9.94467457,124.48,124.42,3.94]
[1766340881139,0.06095761,124.46,124.44,0.06101733]
[1766340887256,0.00095761,124.46,124.44,0.06101733]
[1766340900563,0.00095761,124.46,124.44,4.00101733]
[1766340901655,0.00095761,124.46,124.44,0.06101733]
[1766340902253,0.00095761,124.46,124.42,3.94]
[1766340902752,1.73667377,124.44,124.37,63.0]
[1766340903066,1.73667377,124.44,124.36,47.48]
[1766340903266,0.05832799,124.41,124.39,0.05750616]
[1766340903464,1.73667377,124.44,124.39,0.05750616]
[1766340904362,0.05108446,124.43,124.39,0.05750616]
[1766340904565,0.00108446,124.43,124.38,7.2381]
[1766340904753,0.00108446,124.43,124.39,3.94]
[1766340905459,0.00108446,124.43,124.41,4.07]
[1766340906973,0.00108446,124.43,124.4,0.05827807]
[1766340907274,1.73667377,124.42,124.37,4.07]
[1766340908164,0.05309027,124.41,124.38,4.12810813]
[1766340911574,0.00309027,124.41,124.38,4.12810813]
[1766340913075,0.00309027,124.41,124.39,4.07]
[1766340926777,49.21667377,124.48,124.4,4.17]
[1766340926969,47.48,124.48,124.4,4.17]
[1766340927772,0.00240377,124.45,124.43,0.06120274]
[1766340928283,0.00240377,124.45,124.43,4.15120274]
[1766340930075,8.96827377,124.5,124.43,4.15120274]
[1766340930281,114.21097377,124.52,124.43,4.15120274]
[1766340930580,1.73667377,124.5,124.43,4.09]
[1766340931179,1.73667377,124.5,124.45,0.05933439]
[1766340931675,8.96827377,124.5,124.45,0.05933439]
[1766340934984,7.2316,124.5,124.45,4.17933439]
[1766340935186,1.73667377,124.52,124.45,4.17933439]
[1766340936684,159.9328,124.55,124.45,4.17933439]
[1766340936884,1.73667377,124.53,124.49,0.05932341]
[1766340938084,7.2299,124.53,124.49,0.05932341]
[1766340940695,8.96507086,124.53,124.49,0.05932341]
[1766340941384,1.73517086,124.51,124.43,4.12]
[1766340941689,49.21517086,124.51,124.43,4.12]
[1766340942189,0.05530067,124.48,124.46,0.06173969]
[1766340945290,49.21517086,124.51,124.46,4.18173969]
[1766340945886,1.73517086,124.53,124.46,4.18173969]
[1766340946089,1.73517086,124.53,124.46,4.12]
[1766340946292,1.73517086,124.53,124.48,0.05210499]
[1766340946593,1.73517086,124.53,124.48,4.17210499]
[1766340949195,49.21517086,124.55,124.48,4.17210499]
[1766340950294,49.21517086,124.55,124.5,4.12]
[1766340950295,47.48,124.55,124.5,4.12]
[1766340950490,47.48,124.55,124.49,7.2318]
[1766340950491,1.73517086,124.57,124.51,4.18073686]
[1766340950892,1.73517086,124.55,124.51,0.06073686]
[1766340951790,1.73517086,124.55,124.51,4.18073686]
[1766340951995,9.93759233,124.57,124.51,4.18073686]
[1766340952396,9.93759233,124.57,124.51,0.06073686]
[1766340955998,2.70999233,124.55,124.49,4.12]
[1766340956201,2.70999233,124.53,124.47,67.12]
[1766340956398,2.70999233,124.53,124.47,4.12]
[1766340957000,2.70999233,124.55,124.47,4.12]
[1766340957300,0.05605743,124.51,124.49,0.05125681]
[1766340960298,0.05605743,124.51,124.45,4.12]
[1766340960500,2.70999233,124.5,124.41,4.12]
[1766340961396,0.05115416,124.47,124.44,0.05774958]
[1766340963709,2.70999233,124.5,124.44,4.17774958]
[1766340964209,2.70999233,124.52,124.45,4.12]
[1766340964902,47.46,124.54,124.43,4.12]
[1766340964903,2.76186313,124.5,124.43,4.12]
[1766340965102,2.70999233,124.5,124.43,4.12]
[1766340965908,0.05250488,124.48,124.45,0.05678264]
[1766340968711,9.94039233,124.52,124.45,4.00678264]
[1766340969115,2.70999233,124.5,124.45,4.00678264]
[1766340969713,0.05547392,124.49,124.45,4.00678264]
[1766340974814,2.70999233,124.52,124.46,3.95]
[1766340975606,0.02479862,124.5,124.48,0.06143575]
[1766340976009,50.16999233,124.54,124.48,4.01143575]
[1766340977514,47.46,124.54,124.48,4.01143575]
[1766340977820,50.16999233,124.54,124.48,4.01143575]
[1766340980113,5.54710054,124.56,124.49,3.95]
[1766340980419,5.54710054,124.56,124.51,0.05919609]
[1766340981019,2.83710821,124.56,124.51,0.05919609]
[1766340982009,2.76728104,124.55,124.48,3.95]
[1766340982923,9.9969525,124.55,124.48,3.95]
[1766340983216,9.9969525,124.55,124.5,0.05374148]
[1766340984514,2.7683525,124.55,124.5,4.00374148]
[1766340984818,0.05728871,124.55,124.5,4.00374148]
[1766340986614,0.05728871,124.55,124.51,4.04]
[1766340987013,2.83710821,124.56,124.51,4.04]
[1766340987325,47.46,124.59,124.53,4.04]
[1766340988223,47.46,124.59,124.55,0.05698591]
[1766340990928,9.93646379,124.61,124.55,0.05698591]
[1766340991926,7.2254,124.61,124.55,0.05698591]
[1766340995126,116.48385773,124.63,124.55,0.05698591]
[1766340995325,116.48385773,124.63,124.58,0.00155777]
[1766340996227,0.05980356,124.62,124.58,0.00155777]
[1766340997726,7.28460356,124.62,124.58,0.00155777]
[1766341005829,0.05980356,124.62,124.58,0.00155777]
[1766341006026,9.93616379,124.61,124.55,4.23]
[1766341006233,57.37616379,124.61,124.55,4.23]
[1766341006937,0.05372958,124.59,124.57,0.0547104]
[1766341008638,0.00372958,124.59,124.57,4.2847104]
[1766341009336,0.00372958,124.59,124.57,0.0547104]
[1766341011742,0.00372958,124.59,124.57,4.2847104]
[1766341013433,0.00372958,124.59,124.57,0.0547104]
[1766341014936,0.00372958,124.59,124.58,4.23]
[1766341016245,0.00372958,124.59,124.57,0.0547104]
[1766341016744,0.00372958,124.59,124.57,4.2847104]
[1766341024458,0.00372958,124.59,124.57,0.0547104]
[1766341024662,1.73297522,124.58,124.54,4.23]
[1766341025764,1.73297522,124.58,124.55,0.05241791]
[1766341026757,0.00372958,124.59,124.55,0.05241791]
[1766341026758,1.7367048,124.59,124.55,0.05241791]
[1766341026964,1.73740439,124.59,124.55,0.05241791]
[1766341032174,1.73740439,124.59,124.51,70.2305]
[1766341032175,1.73367481,124.57,124.51,4.31]
[1766341032463,119.74028147,124.59,124.51,4.31]
[1766341032464,1.73367481,124.55,124.51,4.31]
[1766341033056,0.05102827,124.54,124.52,0.06187217]
[1766341033257,0.00102827,124.54,124.52,0.06187217]
[1766341037970,14.55085189,124.59,124.52,4.37187217]
[1766341038173,1.73367481,124.59,124.52,4.37187217]
[1766341038366,1.73367481,124.61,124.52,4.37187217]
[1766341038673,1.73367481,124.61,124.52,4.31]
[1766341038973,0.06040892,124.58,124.55,4.36502062]
[1766341039673,0.00040892,124.58,124.55,4.36502062]
[1766341047274,2.07327073,124.62,124.55,4.36502062]
[1766341048778,1.73367481,124.64,124.56,51.69]
[1766341048974,1.73367481,124.62,124.59,0.0574239]
[1766341049280,1.73367481,124.62,124.56,4.25]
[1766341049475,1.73367481,124.6,124.56,4.25]
[1766341050181,0.0560021,124.59,124.57,0.05421959]
[1766341050384,0.0560021,124.59,124.51,54.6506]
[1766341050576,1.73367481,124.6,124.51,54.6506]
[1766341051281,0.05187245,124.57,124.54,0.05878316]
[1766341052880,0.05187245,124.57,124.54,4.30878316]
[1766341057279,120.99759394,124.63,124.54,4.30878316]
[1766341057482,1.73367481,124.61,124.54,4.25]
[1766341058386,0.05192093,124.59,124.56,0.05874933]
[1766341058588,0.05192093,124.59,124.56,4.37874933]
[1766341063790,1.78559574,124.59,124.56,4.37874933]
[1766341067193,0.05192093,124.59,124.56,4.37874933]
[1766341070299,0.00192093,124.59,124.56,4.37874933]
[1766341079112,0.00192093,124.59,124.56,0.05874933]
[1766341083304,0.00192093,124.59,124.56,4.37874933]
[1766341088203,7.2243,124.63,124.56,4.37874933]
[1766341094104,112.3555,124.65,124.56,4.37874933]
[1766341094311,115.06344239,124.65,124.59,0.05400024]
[1766341095409,7.2236,124.64,124.59,0.05400024]
[1766341095807,7.2236,124.64,124.59,4.07400024]
[1766341096512,11.32738758,124.66,124.59,4.07400024]
[1766341099106,47.42,124.67,124.59,4.07400024]
[1766341099410,47.42,124.67,124.62,0.06104259]
[1766341102109,54.6418,124.67,124.62,0.06104259]
[1766341102512,2.70794239,124.66,124.62,0.06104259]
[1766341102709,47.42,124.67,124.62,0.06104259]
[1766341103609,7.2224,124.66,124.62,0.06104259]
[1766341103805,1.39666486,124.69,124.62,0.06104259]
[1766341104115,2.70794239,124.69,124.62,0.06104259]
[1766341104513,9.92964239,124.67,124.62,0.06104259]
[1766341104815,9.92964239,124.67,124.63,0.05571029]
[1766341105015,57.34964239,124.67,124.63,0.05571029]
[1766341107605,50.12794239,124.67,124.63,0.05571029]
[1766341108206,47.42,124.67,124.63,3.98571029]
[1766341108710,7.2208,124.69,124.63,3.98571029]
[1766341108916,9.92904239,124.68,124.63,3.98571029]
[1766341109802,54.6402,124.7,124.63,3.98571029]
[1766341110022,47.42,124.7,124.63,3.98571029]
[1766341110912,50.12794239,124.7,124.63,3.98571029]
[1766341112713,57.34814239,124.7,124.63,3.98571029]
[1766341114914,2.70509568,124.69,124.63,3.98571029]
[1766341116612,7.2202,124.7,124.63,3.98571029]